fUST/lending_fUST_20250216
["ID","MTS","AMOUNT","RATE_DAILY","PERIOD"]
[353202224,1739646633425,-500.0,8.899e-05,2]
[353202225,1739646633435,-270.81170593,8.899e-05,2]
[353202226,1739646633444,-500.0,8.899e-05,2]
[353202227,1739646633453,-500.0,8.899e-05,2]
[353202228,1739646633463,-500.0,8.899e-05,2]
[353202229,1739646633473,-500.0,8.899e-05,2]
[353202230,1739646633482,-500.0,8.899e-05,2]
[353202231,1739646633492,-500.0,8.899e-05,2]
[353202232,1739646633502,-500.0,8.899e-05,2]
[353202233,1739646633512,-386.69568675,8.899e-05,2]
[353202234,1739646633521,-64573.09100195,8.9e-05,2]
[353202235,1739646633833,737.33,8.843e-05,2]
[353202236,1739646633846,-27930.47669083,8.9e-05,2]
[353202237,1739646634795,500.0,8.843e-05,2]
[353202245,1739646638387,-2334.54,8.87e-05,2]
[353202246,1739646638397,-11269.34041532,8.9e-05,2]
[353202247,1739646638409,-8259.07209351,8.9e-05,2]
[353202248,1739646638420,-6421.44482975,8.9e-05,2]
[353202249,1739646638432,-6827.18603568,8.9e-05,2]
[353202250,1739646638448,-17051.45957645,8.9e-05,2]
[353202251,1739646638460,-21874.72733395,8.9e-05,2]
[353202252,1739646638473,-3502.93772859,8.9e-05,2]
[353202253,1739646638485,-9080.51145055,8.9e-05,2]
[353202254,1739646638496,-3672.65693114,8.9e-05,2]
[353202255,1739646638508,-676.17413157,8.9e-05,2]
[353202276,1739646640368,500.0,8.843e-05,2]
[353202284,1739646640492,559.41,8.843e-05,2]
[353202296,1739646640596,-500.0,8.899e-05,2]
[353202298,1739646640605,-419.44999974,8.899e-05,2]
[353202304,1739646640652,-80.55000026,8.899e-05,2]
[353202306,1739646640661,-187.54272638,8.899e-05,2]
[353202308,1739646640671,-383.66132379,8.899e-05,2]
[353202310,1739646640683,-192.74835857,8.899e-05,2]
[353202312,1739646640693,-500.0,8.899e-05,2]
[353202314,1739646640702,-500.0,8.899e-05,2]
[353202317,1739646640712,-500.0,8.899e-05,2]
[353202321,1739646640721,-500.0,8.899e-05,2]
[353202323,1739646640731,-500.0,8.899e-05,2]
[353202326,1739646640740,-500.0,8.899e-05,2]
[353202330,1739646640749,-500.0,8.899e-05,2]
[353202332,1739646640759,-500.0,8.899e-05,2]
[353202335,1739646640769,-1412.60627827,8.9e-05,2]
[353202415,1739646643511,-1030.886,8.9e-05,2]
[353202422,1739646643567,-7186.52361951,8.9e-05,2]
[353202429,1739646643625,-4795.11,8.9e-05,2]
[353202431,1739646643636,-3990.73422229,8.9e-05,2]
[353202561,1739646644811,500.0,8.843e-05,2]
[353202637,1739646645530,500.0,8.843e-05,2]
[353202742,1739646646513,-9860.0,8.9e-05,2]
[353202744,1739646646526,-1005.58959861,8.9e-05,2]
[353202746,1739646646539,-4633.77347189,8.9e-05,2]
[353202749,1739646646551,-386.61368271,8.9e-05,2]
[353202751,1739646646563,-9785.2,8.9e-05,2]
[353202754,1739646646584,-58455.221178,8.9e-05,2]
[353202762,1739646646644,620.26,8.843e-05,2]
[353202794,1739646647110,2771.09,8.843e-05,2]
[353203062,1739646649771,500.0,8.843e-05,2]
[353203360,1739646652729,500.0,8.843e-05,2]
[353203387,1739646655951,500.0,8.843e-05,2]
[353203388,1739646656730,3533.33,8.843e-05,2]
[353203389,1739646657239,500.0,8.843e-05,2]
[353203390,1739646659481,816.29,8.843e-05,2]
[353203391,1739646661370,500.0,8.843e-05,2]
[353203392,1739646661689,388.69608094,8.843e-05,2]
[353203393,1739646661718,111.78470602,8.843e-05,2]
[353203394,1739646663798,852.4,8.843e-05,2]
[353203395,1739646667894,500.0,8.843e-05,2]
[353203398,1739646680993,500.0,8.843e-05,2]
[353203399,1739646682253,500.0,8.843e-05,2]
[353203400,1739646684539,500.0,8.843e-05,2]
[353203401,1739646686034,607.62,8.843e-05,2]
[353203402,1739646687318,500.0,8.843e-05,2]
[353203403,1739646687960,500.0,8.843e-05,2]
[353203404,1739646690602,13927.78,8.843e-05,2]
[353203405,1739646691552,500.0,8.843e-05,2]
[353203406,1739646691907,924.14,8.843e-05,2]
[353203407,1739646694518,500.0,8.843e-05,2]
[353203408,1739646694830,500.0,8.843e-05,2]
[353203409,1739646696961,500.0,8.843e-05,2]
[353203410,1739646699766,512.25180058,8.843e-05,2]
[353203411,1739646700374,500.0,8.843e-05,2]
[353203412,1739646701060,818.01,8.843e-05,2]
[353203413,1739646703329,500.0,8.843e-05,2]
[353203414,1739646706912,500.0,8.843e-05,2]
[353203415,1739646707452,38466.23,8.843e-05,2]
[353203416,1739646708582,1196.33,8.843e-05,2]
[353203417,1739646712798,542.36,8.843e-05,2]
[353203418,1739646716180,500.0,8.843e-05,2]
[353203419,1739646718206,2054.53,8.843e-05,2]
[353203420,1739646719315,500.0,8.843e-05,2]
[353203421,1739646721605,639.76,8.843e-05,2]
[353203422,1739646724516,501.68634764,8.843e-05,2]
[353203423,1739646726944,500.0,8.843e-05,2]
[353203424,1739646728235,500.0,8.843e-05,2]
[353203425,1739646731454,1421.66,8.843e-05,2]
[353203426,1739646731836,500.0,8.843e-05,2]
[353203427,1739646736719,500.0,8.843e-05,2]
[353203428,1739646737833,2574.9,8.843e-05,2]
[353203429,1739646738047,500.0,8.843e-05,2]
[353203430,1739646738931,500.0,8.843e-05,2]
[353203431,1739646741165,503.90876748,8.843e-05,2]
[353203432,1739646741600,500.0,8.843e-05,2]
[353203433,1739646741977,500.0,8.843e-05,2]
[353203434,1739646743226,832.0,8.843e-05,2]
[353203435,1739646743936,500.0,8.843e-05,2]
[353203436,1739646746388,500.0,8.843e-05,2]
[353203437,1739646746825,500.0,8.843e-05,2]
[353203439,1739646748023,500.0,8.843e-05,2]
[353203440,1739646751742,736.24,8.843e-05,2]
[353203441,1739646752194,500.0,8.843e-05,2]
[353203442,1739646755352,500.0,8.843e-05,2]
[353203443,1739646757768,500.0,8.843e-05,2]
[353203444,1739646758112,500.0,8.843e-05,2]
[353203445,1739646760178,500.0,8.843e-05,2]
[353203446,1739646764684,500.0,8.843e-05,2]
[353203447,1739646766594,604.78,8.843e-05,2]
[353203448,1739646766628,500.0,8.843e-05,2]
[353203449,1739646770718,500.0,8.843e-05,2]
[353203450,1739646773898,500.0,8.843e-05,2]
[353203451,1739646773953,1396.83,8.843e-05,2]
[353203452,1739646776451,500.0,8.843e-05,2]
[353203453,1739646780385,1084.57,8.843e-05,2]
[353203454,1739646780849,500.0,8.843e-05,2]
[353203455,1739646785136,500.0,8.843e-05,2]
[353203457,1739646790573,500.0,8.843e-05,2]
[353203458,1739646792491,500.0,8.843e-05,2]
[353203459,1739646793624,500.0,8.843e-05,2]
[353203460,1739646794347,576.18,8.843e-05,2]
[353203461,1739646795916,579.46,8.843e-05,2]
[353203462,1739646801226,542.38774332,8.843e-05,2]
[353203463,1739646806229,500.0,8.843e-05,2]
[353203464,1739646810931,500.0,8.843e-05,2]
[353203465,1739646815766,500.0,8.843e-05,2]
[353203466,1739646816597,500.0,8.843e-05,2]
[353203467,1739646825133,674.85,8.843e-05,2]
[353203468,1739646825167,500.0,8.843e-05,2]
[353203469,1739646834953,500.0,8.843e-05,2]
[353203470,1739646835745,500.0,8.843e-05,2]
[353203471,1739646844590,500.0,8.843e-05,2]
[353203472,1739646848228,500.0,8.843e-05,2]
[353203473,1739646849579,500.0,8.843e-05,2]
[353203474,1739646852585,500.0,8.843e-05,2]
[353203475,1739646853941,500.0,8.843e-05,2]
[353203476,1739646855614,648.90031257,8.843e-05,2]
[353203477,1739646856570,500.0,8.843e-05,2]
[353203478,1739646857246,500.0,8.843e-05,2]
[353203479,1739646858403,500.0,8.843e-05,2]
[353203480,1739646858680,1212.06,8.843e-05,2]
[353203481,1739646860410,500.0,8.843e-05,2]
[353203482,1739646864317,500.0,8.843e-05,2]
[353203483,1739646867920,500.0,8.843e-05,2]
[353203484,1739646868920,500.0,8.843e-05,2]
[353203485,1739646871211,509.08411978,8.843e-05,2]
[353203486,1739646882485,5120.2527084,7.896e-05,2]
[353203487,1739646885656,500.0,8.843e-05,2]
[353203488,1739646888846,500.0,8.843e-05,2]
[353203489,1739646889638,500.0,8.843e-05,2]
[353203490,1739646893436,500.0,8.843e-05,2]
[353203491,1739646901261,500.0,8.843e-05,2]
[353203492,1739646908389,673.33,8.843e-05,2]
[353203493,1739646910005,500.0,8.843e-05,2]
[353203494,1739646923179,500.0,8.843e-05,2]
[353203495,1739646924349,500.0,8.843e-05,2]
[353203496,1739646931275,2171.12,8.843e-05,2]
[353203497,1739646933740,747.35,8.843e-05,2]
[353203498,1739646940038,819.76,8.843e-05,2]
[353203499,1739646952617,577.43,8.843e-05,2]
[353203500,1739646969234,570.31093886,8.843e-05,2]
[353203501,1739646974013,642.49051916,8.843e-05,2]
[353203502,1739646979266,500.0,8.843e-05,2]
[353203503,1739646984157,500.0,8.843e-05,2]
[353203504,1739646991997,500.0,8.843e-05,2]
[353203505,1739647008399,500.0,8.843e-05,2]
[353203506,1739647018265,500.0,8.843e-05,2]
[353203507,1739647020438,500.0,8.843e-05,2]
[353203508,1739647022946,500.0,8.843e-05,2]
[353203509,1739647025589,500.0,8.843e-05,2]
[353203510,1739647029407,500.0,8.843e-05,2]
[353203511,1739647031536,500.0,8.843e-05,2]
[353203512,1739647037766,500.0,8.843e-05,2]
[353203513,1739647043779,500.0,8.843e-05,2]
[353203514,1739647048401,500.0,8.843e-05,2]
[353203515,1739647053832,500.0,8.843e-05,2]
[353203516,1739647055801,500.0,8.843e-05,2]
[353203517,1739647057940,1011.67,8.843e-05,2]
[353203518,1739647065051,500.0,8.843e-05,2]
[353203519,1739647081227,500.0,8.843e-05,2]
[353203520,1739647083867,500.0,8.843e-05,2]
[353203521,1739647092735,500.0,8.843e-05,2]
[353203522,1739647112407,500.0,8.843e-05,2]
[353203523,1739647120845,416.793,8.722e-05,2]
[353203555,1739647832867,-1958.99903586,8.849e-05,2]
[353203556,1739647832877,-382.00034945,8.866e-05,2]
[353203557,1739647832886,-407.83465793,8.866e-05,2]
[353203558,1739647832897,-500.0,8.866e-05,2]
[353203559,1739647832907,-463.36593242,8.866e-05,2]
[353203560,1739647832916,-500.0,8.866e-05,2]
[353203561,1739647832926,-500.0,8.866e-05,2]
[353203562,1739647832935,-500.0,8.866e-05,2]
[353203563,1739647832945,-500.0,8.866e-05,2]
[353203564,1739647832956,-1941.86,8.867e-05,2]
[353203565,1739647832966,-664.27,8.867e-05,2]
[353203566,1739647832976,-1175.7,8.867e-05,2]
[353203567,1739647832986,-933.07,8.867e-05,2]
[353203568,1739647832995,-500.0,8.867e-05,2]
[353203569,1739647833005,-500.0,8.867e-05,2]
[353203570,1739647833015,-500.0,8.867e-05,2]
[353203571,1739647833024,-941.66,8.867e-05,2]
[353203572,1739647833033,-1507.33,8.867e-05,2]
[353203573,1739647833043,-1040.3,8.867e-05,2]
[353203574,1739647833052,-2293.09,8.867e-05,2]
[353203575,1739647833062,-4324.1,8.867e-05,2]
[353203576,1739647833071,-500.0,8.867e-05,2]
[353203577,1739647833081,-500.0,8.867e-05,2]
[353203578,1739647833091,-500.0,8.867e-05,2]
[353203579,1739647833101,-500.0,8.867e-05,2]
[353203580,1739647833110,-675.76,8.867e-05,2]
[353203581,1739647833120,-2924.98,8.867e-05,2]
[353203582,1739647833130,-1848.51,8.867e-05,2]
[353203583,1739647833139,-546.71,8.867e-05,2]
[353203584,1739647833148,-500.0,8.867e-05,2]
[353203585,1739647833158,-1656.8,8.867e-05,2]
[353203586,1739647833168,-500.0,8.867e-05,2]
[353203587,1739647833178,-1313.73,8.867e-05,2]
[353203588,1739647833187,-500.0,8.867e-05,2]
[353203589,1739647833196,-1286.78,8.867e-05,2]
[353203590,1739647833206,-1239.11,8.867e-05,2]
[353203591,1739647833216,-500.0,8.867e-05,2]
[353203592,1739647833225,-1775.03,8.867e-05,2]
[353203593,1739647833234,-500.0,8.867e-05,2]
[353203594,1739647833244,-14175.0,8.867e-05,2]
[353203595,1739647833253,-500.0,8.867e-05,2]
[353203596,1739647833263,-500.0,8.867e-05,2]
[353203597,1739647833272,-3140.42,8.867e-05,2]
[353203598,1739647833282,-1804.49,8.867e-05,2]
[353203599,1739647833292,-500.0,8.867e-05,2]
[353203600,1739647833302,-500.0,8.867e-05,2]
[353203601,1739647833312,-500.0,8.867e-05,2]
[353203602,1739647833321,-561.71,8.867e-05,2]
[353203603,1739647833331,-536.1,8.867e-05,2]
[353203604,1739647833340,-4998.29,8.867e-05,2]
[353203605,1739647833350,-1150.75,8.867e-05,2]
[353203606,1739647833360,-500.0,8.867e-05,2]
[353203607,1739647833369,-706.61,8.867e-05,2]
[353203608,1739647833379,-2237.27,8.867e-05,2]
[353203609,1739647833389,-500.0,8.868e-05,2]
[353203610,1739647833398,-790.73,8.868e-05,2]
[353203611,1739647833407,-924.42,8.868e-05,2]
[353203612,1739647833417,-500.0,8.868e-05,2]
[353203613,1739647833427,-500.0,8.868e-05,2]
[353203614,1739647833437,-807.09,8.868e-05,2]
[353203615,1739647833446,-552.67,8.868e-05,2]
[353203616,1739647833455,-500.0,8.868e-05,2]
[353203617,1739647833465,-500.0,8.868e-05,2]
[353203618,1739647833475,-500.0,8.868e-05,2]
[353203619,1739647833485,-1288.88,8.868e-05,2]
[353203620,1739647833494,-787.58,8.868e-05,2]
[353203621,1739647833504,-500.0,8.868e-05,2]
[353203622,1739647833513,-500.0,8.868e-05,2]
[353203623,1739647833523,-500.0,8.868e-05,2]
[353203624,1739647833533,-824.19,8.868e-05,2]
[353203625,1739647833543,-797.84,8.868e-05,2]
[353203626,1739647833552,-679.65,8.868e-05,2]
[353203627,1739647833561,-500.0,8.868e-05,2]
[353203628,1739647833570,-500.0,8.868e-05,2]
[353203629,1739647833580,-500.0,8.868e-05,2]
[353203630,1739647833589,-634.19,8.868e-05,2]
[353203631,1739647833599,-1270.78,8.868e-05,2]
[353203632,1739647833608,-500.0,8.868e-05,2]
[353203633,1739647833617,-500.0,8.868e-05,2]
[353203634,1739647833628,-508.68,8.868e-05,2]
[353203635,1739647833639,-1056.48,8.868e-05,2]
[353203636,1739647833649,-500.0,8.868e-05,2]
[353203637,1739647833659,-500.0,8.868e-05,2]
[353203638,1739647833668,-500.0,8.868e-05,2]
[353203639,1739647833678,-500.0,8.868e-05,2]
[353203640,1739647833687,-1017.37,8.868e-05,2]
[353203641,1739647833697,-500.0,8.868e-05,2]
[353203642,1739647833707,-500.0,8.868e-05,2]
[353203643,1739647833716,-603.91,8.868e-05,2]
[353203644,1739647833727,-518.56,8.868e-05,2]
[353203645,1739647833737,-758.38,8.868e-05,2]
[353203646,1739647833747,-500.0,8.868e-05,2]
[353203647,1739647833757,-500.0,8.868e-05,2]
[353203648,1739647833766,-168.8582891,8.868e-05,2]
[353203649,1739647833776,-500.0,8.868e-05,2]
[353203650,1739647833785,-815.34,8.868e-05,2]
[353203651,1739647833795,-614.7,8.868e-05,2]
[353203652,1739647833805,-500.0,8.868e-05,2]
[353203653,1739647833814,-13347.46,8.868e-05,2]
[353203654,1739647833823,-582.27,8.868e-05,2]
[353203655,1739647833832,-500.0,8.868e-05,2]
[353203656,1739647833841,-500.0,8.868e-05,2]
[353203657,1739647833851,-1146.48,8.868e-05,2]
[353203658,1739647833860,-300.92491055,8.868e-05,2]
[353203659,1739647833869,-3386.11,8.868e-05,2]
[353203660,1739647833878,-2013.44,8.868e-05,2]
[353203661,1739647833889,-500.0,8.868e-05,2]
[353203662,1739647833898,-500.0,8.868e-05,2]
[353203663,1739647833908,-885.63,8.868e-05,2]
[353203664,1739647833917,-500.0,8.868e-05,2]
[353203665,1739647833927,-500.0,8.868e-05,2]
[353203666,1739647833937,-14052.99182273,8.868e-05,2]
[353203692,1739647840803,-500.0,8.866e-05,2]
[353203695,1739647840813,-500.0,8.866e-05,2]
[353203697,1739647840823,-1860.95,8.867e-05,2]
[353203699,1739647840833,-1586.82153542,8.868e-05,2]
[353203707,1739647840907,-500.0,8.868e-05,2]
[353203710,1739647840918,-3080.6,8.868e-05,2]
[353203905,1739647846671,-490.65712366,8.866e-05,2]
[353203906,1739647846682,-636.59,8.867e-05,2]
[353203907,1739647846692,-500.0,8.867e-05,2]
[353203908,1739647846701,-9683.04887634,8.868e-05,2]
[353203909,1739647846715,-479.25,8.868e-05,2]
[353203910,1739647846728,-723.34272472,8.868e-05,2]
[353203911,1739647846775,-2698.50176488,8.868e-05,2]
[353203912,1739647905614,24900.0,7.87e-05,2]
[353203913,1739648505450,698.7749062,8.811e-05,2]
[353203914,1739648550508,465.8499375,8.811e-05,2]
[353203915,1739648595563,310.566625,8.811e-05,2]
[353203916,1739648640456,207.0444166,8.811e-05,2]
[353203917,1739648730527,207.0444167,8.811e-05,2]
[353203919,1739648820531,207.0444167,8.811e-05,2]
[353203965,1739649031934,-833.77543019,8.863e-05,2]
[353203975,1739649032043,-951.40894554,8.863e-05,2]
[353203977,1739649032055,-184.80562427,8.863e-05,2]
[353203979,1739649032065,-500.0,8.863e-05,2]
[353203981,1739649032075,-500.0,8.863e-05,2]
[353203983,1739649032085,-500.0,8.863e-05,2]
[353203985,1739649032094,-852.07602453,8.863e-05,2]
[353203988,1739649032123,-454.01397547,8.863e-05,2]
[353203990,1739649032132,-503.26493779,8.863e-05,2]
[353203992,1739649032142,-500.0,8.863e-05,2]
[353203994,1739649032151,-3188.93,8.863e-05,2]
[353203996,1739649032161,-500.0,8.864e-05,2]
[353203998,1739649032170,-578.7811554,8.864e-05,2]
[353204001,1739649032179,-425.1958186,8.864e-05,2]
[353204003,1739649032189,-578.7811554,8.864e-05,2]
[353204005,1739649032198,-500.0,8.864e-05,2]
[353204007,1739649032207,-578.7811554,8.864e-05,2]
[353204009,1739649032216,-578.7811554,8.864e-05,2]
[353204011,1739649032226,-578.7811554,8.864e-05,2]
[353204012,1739649032235,-500.0,8.864e-05,2]
[353204014,1739649032244,-578.7811554,8.864e-05,2]
[353204016,1739649032253,-578.7811554,8.864e-05,2]
[353204018,1739649032262,-519.09608368,8.864e-05,2]
[353204020,1739649032271,-578.7811554,8.864e-05,2]
[353204021,1739649032280,-578.7811554,8.864e-05,2]
[353204023,1739649032290,-578.7811554,8.864e-05,2]
[353204025,1739649032299,-578.7811554,8.864e-05,2]
[353204026,1739649032309,-578.7811554,8.864e-05,2]
[353204027,1739649032318,-578.7811554,8.864e-05,2]
[353204028,1739649032328,-578.7811554,8.864e-05,2]
[353204030,1739649032337,-578.7811554,8.864e-05,2]
[353204031,1739649032347,-578.7811554,8.864e-05,2]
[353204033,1739649032357,-578.7811554,8.864e-05,2]
[353204035,1739649032368,-578.7811554,8.864e-05,2]
[353204037,1739649032378,-578.7811554,8.864e-05,2]
[353204038,1739649032387,-578.7811554,8.864e-05,2]
[353204039,1739649032396,-538.32302912,8.864e-05,2]
[353204296,1739649037741,-500.0,8.863e-05,2]
[353204297,1739649037752,-500.0,8.863e-05,2]
[353204298,1739649037761,-500.0,8.863e-05,2]
[353204299,1739649037771,-500.0,8.863e-05,2]
[353204300,1739649037781,-40.45812628,8.864e-05,2]
[353204301,1739649037792,-578.7811554,8.864e-05,2]
[353204302,1739649037803,-578.7811554,8.864e-05,2]
[353204303,1739649037814,-578.7811554,8.864e-05,2]
[353204305,1739649037823,-578.7811554,8.864e-05,2]
[353204307,1739649037833,-578.7811554,8.864e-05,2]
[353204309,1739649037842,-578.7811554,8.864e-05,2]
[353204311,1739649037852,-578.7811554,8.864e-05,2]
[353204313,1739649037863,-578.7811554,8.864e-05,2]
[353204315,1739649037873,-578.7811554,8.864e-05,2]
[353204317,1739649037883,-578.7811554,8.864e-05,2]
[353204320,1739649037893,-578.7811554,8.864e-05,2]
[353204323,1739649037903,-578.7811554,8.864e-05,2]
[353204325,1739649037913,-578.7811554,8.864e-05,2]
[353204327,1739649037922,-578.7811554,8.864e-05,2]
[353204329,1739649037932,-578.7811554,8.864e-05,2]
[353204331,1739649037942,-578.7811554,8.864e-05,2]
[353204333,1739649037952,-578.7811554,8.864e-05,2]
[353204335,1739649037962,-578.7811554,8.864e-05,2]
[353204338,1739649037972,-578.7811554,8.864e-05,2]
[353204340,1739649037981,-578.7811554,8.864e-05,2]
[353204342,1739649037991,-578.7811554,8.864e-05,2]
[353204344,1739649038000,-578.7811554,8.864e-05,2]
[353204346,1739649038009,-578.7811554,8.864e-05,2]
[353204348,1739649038018,-578.7811554,8.864e-05,2]
[353204350,1739649038028,-578.7811554,8.864e-05,2]
[353204352,1739649038042,-578.7811554,8.864e-05,2]
[353204354,1739649038051,-578.7811554,8.864e-05,2]
[353204356,1739649038061,-578.7811554,8.864e-05,2]
[353204358,1739649038070,-578.7811554,8.864e-05,2]
[353204360,1739649038081,-578.7811554,8.864e-05,2]
[353204362,1739649038090,-575.7349388,8.864e-05,2]
[353204364,1739649038100,-575.7349388,8.864e-05,2]
[353204366,1739649038110,-575.7349388,8.864e-05,2]
[353204368,1739649038120,-575.7349388,8.864e-05,2]
[353204370,1739649038129,-575.7349388,8.864e-05,2]
[353204372,1739649038138,-575.7349388,8.864e-05,2]
[353204374,1739649038147,-575.7349388,8.864e-05,2]
[353204376,1739649038156,-575.7349388,8.864e-05,2]
[353204378,1739649038165,-575.7349388,8.864e-05,2]
[353204380,1739649038175,-575.7349388,8.864e-05,2]
[353204382,1739649038184,-575.7349388,8.864e-05,2]
[353204384,1739649038193,-575.7349388,8.864e-05,2]
[353204386,1739649038203,-575.7349388,8.864e-05,2]
[353204388,1739649038212,-575.7349388,8.864e-05,2]
[353204390,1739649038221,-575.7349388,8.864e-05,2]
[353204392,1739649038231,-575.7349388,8.864e-05,2]
[353204394,1739649038240,-575.7349388,8.864e-05,2]
[353204396,1739649038249,-575.7349388,8.864e-05,2]
[353204398,1739649038258,-575.7349388,8.864e-05,2]
[353204400,1739649038268,-575.7349388,8.864e-05,2]
[353204402,1739649038277,-575.7349388,8.864e-05,2]
[353204404,1739649038286,-575.7349388,8.864e-05,2]
[353204406,1739649038295,-575.7349388,8.864e-05,2]
[353204408,1739649038305,-575.7349388,8.864e-05,2]
[353204410,1739649038314,-575.7349388,8.864e-05,2]
[353204412,1739649038323,-575.7349388,8.864e-05,2]
[353204414,1739649038332,-575.7349388,8.864e-05,2]
[353204416,1739649038342,-575.7349388,8.864e-05,2]
[353204418,1739649038352,-575.7349388,8.864e-05,2]
[353204420,1739649038361,-575.7349388,8.864e-05,2]
[353204422,1739649038371,-575.7349388,8.864e-05,2]
[353204424,1739649038380,-575.7349388,8.864e-05,2]
[353204426,1739649038389,-575.7349388,8.864e-05,2]
[353204428,1739649038398,-575.7349388,8.864e-05,2]
[353204430,1739649038408,-575.73493884,8.864e-05,2]
[353204432,1739649038417,-575.73493884,8.864e-05,2]
[353204433,1739649038426,-575.73493884,8.864e-05,2]
[353204435,1739649038436,-575.73493884,8.864e-05,2]
[353204450,1739649038563,-500.0,8.864e-05,2]
[353204452,1739649038573,-500.0,8.864e-05,2]
[353204454,1739649038583,-500.0,8.864e-05,2]
[353204456,1739649038592,-500.0,8.864e-05,2]
[353204458,1739649038601,-500.0,8.864e-05,2]
[353204460,1739649038611,-500.0,8.864e-05,2]
[353204461,1739649038620,-500.0,8.864e-05,2]
[353204463,1739649038629,-500.0,8.864e-05,2]
[353204465,1739649038638,-500.0,8.864e-05,2]
[353204467,1739649038647,-500.0,8.864e-05,2]
[353204469,1739649038656,-500.0,8.864e-05,2]
[353204471,1739649038666,-500.0,8.864e-05,2]
[353204473,1739649038675,-500.0,8.864e-05,2]
[353204475,1739649038685,-500.0,8.864e-05,2]
[353204477,1739649038694,-500.0,8.864e-05,2]
[353204479,1739649038704,-500.0,8.864e-05,2]
[353204481,1739649038713,-500.0,8.864e-05,2]
[353204483,1739649038722,-500.0,8.864e-05,2]
[353204485,1739649038731,-500.0,8.864e-05,2]
[353204487,1739649038741,-5041.65,8.864e-05,2]
[353204489,1739649038750,-1643.67,8.864e-05,2]
[353204491,1739649038759,-500.0,8.864e-05,2]
[353204493,1739649038768,-1182.21,8.864e-05,2]
[353204495,1739649038777,-2261.71,8.864e-05,2]
[353204497,1739649038787,-500.0,8.864e-05,2]
[353204499,1739649038796,-941.86,8.864e-05,2]
[353204502,1739649038807,-500.0,8.864e-05,2]
[353204503,1739649038817,-500.0,8.864e-05,2]
[353204505,1739649038826,-500.0,8.864e-05,2]
[353204507,1739649038836,-500.0,8.864e-05,2]
[353204510,1739649038846,-500.0,8.864e-05,2]
[353204512,1739649038855,-643.68,8.864e-05,2]
[353204513,1739649038865,-500.0,8.864e-05,2]
[353204516,1739649038874,-500.0,8.864e-05,2]
[353204517,1739649038884,-500.0,8.864e-05,2]
[353204520,1739649038893,-1511.59,8.864e-05,2]
[353204522,1739649038903,-1021.19,8.864e-05,2]
[353204523,1739649038913,-500.0,8.864e-05,2]
[353204525,1739649038922,-2306.63,8.864e-05,2]
[353204527,1739649038931,-4317.03,8.864e-05,2]
[353204529,1739649038941,-938.78,8.864e-05,2]
[353204531,1739649038951,-226.00718885,8.864e-05,2]
[353204533,1739649038960,-500.0,8.864e-05,2]
[353204534,1739649038971,-500.0,8.864e-05,2]
[353204535,1739649038984,-500.0,8.864e-05,2]
[353204536,1739649038993,-700.73,8.864e-05,2]
[353204537,1739649039003,-500.0,8.864e-05,2]
[353204538,1739649039012,-2931.97,8.864e-05,2]
[353204539,1739649039022,-605.23,8.864e-05,2]
[353204540,1739649039033,-500.0,8.864e-05,2]
[353204541,1739649039043,-1665.11,8.864e-05,2]
[353204542,1739649039052,-500.0,8.864e-05,2]
[353204543,1739649039062,-645.19,8.864e-05,2]
[353204544,1739649039071,-1312.81,8.864e-05,2]
[353204545,1739649039081,-500.0,8.864e-05,2]
[353204546,1739649039091,-500.0,8.864e-05,2]
[353204547,1739649039100,-500.0,8.864e-05,2]
[353204548,1739649039110,-500.0,8.864e-05,2]
[353204550,1739649039120,-500.0,8.864e-05,2]
[353204552,1739649039130,-1234.2,8.864e-05,2]
[353204554,1739649039142,-500.0,8.864e-05,2]
[353204556,1739649039151,-500.0,8.864e-05,2]
[353204558,1739649039160,-500.0,8.864e-05,2]
[353204560,1739649039169,-654.03840433,8.864e-05,2]
[353204564,1739649039200,-542.05,8.864e-05,2]
[353204567,1739649039211,-579.17159567,8.864e-05,2]
[353204569,1739649039220,-500.0,8.864e-05,2]